bitfinex/quotes_SOLUSD_20250616
["timestamp","ask_amount","ask_price","bid_price","bid_amount"]
[1750109148403,4.89266151,157.2,157.16,31.66264817]
[1750109148592,4.89266151,157.19,157.16,31.66264817]
[1750109150705,11.25453446,157.19,157.16,25.3]
[1750109150878,4.89266151,157.18,157.14,31.66361059]
[1750109169932,7.86380937,157.21,157.14,31.66361059]
[1750109170105,4.89266151,157.18,157.14,31.66361059]
[1750109176117,1.5027,157.21,157.14,52.46565227]
[1750109176323,4.89266151,157.2,157.14,52.46565227]
[1750109177310,4.89266151,157.2,157.15,4.89266151]
[1750109177811,4.89266151,157.2,157.16,22.27029778]
[1750109180028,4.89266151,157.2,157.16,47.57029778]
[1750109182736,6.39536151,157.21,157.16,47.57029778]
[1750109186042,4.89266151,157.2,157.16,47.57029778]
[1750109186350,1.5027,157.21,157.16,47.57029778]
[1750109186510,6.39536151,157.21,157.16,47.57029778]
[1750109187314,6.39536151,157.21,157.16,52.46295929]
[1750109187554,4.89266151,157.2,157.16,47.57029778]
[1750109191351,6.39536151,157.21,157.16,52.46295929]
[1750109192449,1.5027,157.21,157.16,52.46295929]
[1750109192734,6.39536151,157.21,157.16,52.46295929]
[1750109193631,6.5533,157.24,157.18,4.89266151]
[1750109193823,6.5533,157.24,157.18,25.3]
[1750109194023,11.44596151,157.24,157.18,30.19266151]
[1750109194725,11.44596151,157.24,157.19,6.36172784]
[1750109194927,11.44596151,157.24,157.19,11.25438935]
[1750109195123,6.5533,157.24,157.19,27.15870896]
[1750109195340,11.44596151,157.24,157.19,27.15870896]
[1750109197818,11.44596151,157.24,157.19,52.45870896]
[1750109200940,11.44596151,157.24,157.19,47.56604745]
[1750109201143,11.44596151,157.24,157.19,52.45870896]
[1750109203746,11.44596151,157.24,157.19,27.15870896]
[1750109208648,6.5533,157.24,157.19,27.15870896]
[1750109208833,11.44596151,157.24,157.19,27.15870896]
[1750109209749,11.44596151,157.24,157.19,52.45870896]
[1750109211136,11.44596151,157.24,157.19,47.56604745]
[1750109211323,11.44596151,157.24,157.19,52.45870896]
[1750109218450,11.44596151,157.24,157.19,47.56604745]
[1750109218649,4.89266151,157.23,157.19,47.56604745]
[1750109218841,11.44596151,157.24,157.19,52.45870896]
[1750109224753,6.5533,157.24,157.19,52.45870896]
[1750109228057,6.5533,157.24,157.19,47.56604745]
[1750109228252,6.5533,157.24,157.19,52.45870896]
[1750109230933,6.5533,157.24,157.19,47.56604745]
[1750109231340,6.5533,157.24,157.19,52.45870896]
[1750109238077,6.5533,157.24,157.2,4.89266151]
[1750109238262,6.5533,157.24,157.19,47.56604745]
[1750109238568,6.5533,157.24,157.19,27.15870896]
[1750109246367,6.5533,157.24,157.18,44.79181043]
[1750109246569,6.5533,157.24,157.18,49.68447194]
[1750109247456,6.5533,157.24,157.19,6.36172784]
[1750109251059,1.5421,157.25,157.19,22.26604745]
[1750109251255,18.65386712,157.27,157.23,18.64964886]
[1750109251470,18.65386712,157.27,157.23,23.54231037]
[1750109252069,18.65386712,157.27,157.25,5.03482308]
[1750109252590,18.65386712,157.27,157.26,6.35889609]
[1750109252884,18.65386712,157.27,157.26,11.2515576]
[1750109253088,18.65386712,157.27,157.26,30.04336803]
[1750109253266,8.33333333,157.31,157.26,45.94060826]
[1750109253465,8.33333333,157.31,157.27,4.89266151]
[1750109253679,8.33333333,157.31,157.28,4.89266151]
[1750109254260,8.33333333,157.31,157.29,4.89266151]
[1750109254568,8.33333333,157.31,157.3,6.35727908]
[1750109255395,8.33333333,157.31,157.3,11.24994059]
[1750109269497,8.33333333,157.31,157.3,4.89266151]
[1750109269793,8.33333333,157.31,157.3,23.96879508]
[1750109271070,8.33333333,157.31,157.3,30.32607416]
[1750109276477,16.66666666,157.31,157.3,30.32607416]
[1750109278599,16.66666666,157.31,157.3,6.35727908]
[1750109278805,16.66666666,157.31,157.3,11.24994059]
[1750109285106,16.66666666,157.31,157.3,6.35727908]
[1750109285302,16.66666666,157.31,157.3,11.24994059]
[1750109288310,8.33333333,157.31,157.3,11.24994059]
[1750109303814,1.592,157.38,157.32,0.42648471]
[1750109303999,1.592,157.38,157.37,4.89266151]
[1750109304198,1.592,157.38,157.32,0.42648471]
[1750109304418,1.592,157.38,157.37,4.89266151]
[1750109307412,1.592,157.38,157.35,4.89266151]
[1750109307732,1.592,157.38,157.36,4.89266151]
[1750109308033,1.592,157.38,157.34,6.35566289]
[1750109308202,1.592,157.38,157.35,4.89266151]
[1750109309126,1.592,157.38,157.36,4.89266151]
[1750109309885,1.592,157.38,157.35,6.35519869]
[1750109310004,6.122,157.4,157.37,4.89266151]
[1750109310206,6.122,157.4,157.37,11.24692239]
[1750109312226,6.122,157.4,157.34,22.24482012]
[1750109312419,6.122,157.4,157.37,4.89266151]
[1750109312620,6.122,157.4,157.38,4.89266151]
[1750109313721,6.122,157.4,157.34,22.24482012]
[1750109314040,6.122,157.4,157.36,4.89266151]
[1750109314341,6.122,157.4,157.36,11.24743968]
[1750109323540,11.01466151,157.4,157.36,4.89266151]
[1750109325445,11.01466151,157.4,157.36,11.2474731]
[1750109326726,17.36791166,157.4,157.36,6.35481159]
[1750109328325,17.36791166,157.4,157.36,4.89266151]
[1750109328855,11.01466151,157.4,157.36,4.89266151]
[1750109329055,11.01466151,157.4,157.35,4.89266151]
[1750109329355,11.01466151,157.4,157.34,6.35566289]
[1750109329555,11.01466151,157.4,157.35,4.89266151]
[1750109329930,11.01466151,157.4,157.36,4.89266151]
[1750109330544,11.01466151,157.4,157.36,11.247434]
[1750109331653,11.01466151,157.4,157.34,6.35566289]
[1750109331829,11.01466151,157.4,157.36,4.89266151]
[1750109332657,6.122,157.4,157.36,4.89266151]
[1750109332954,11.01466151,157.4,157.36,11.24728252]
[1750109333255,6.122,157.4,157.36,11.24728252]
[1750109335538,11.01466151,157.4,157.36,11.24728252]
[1750109337637,11.01466151,157.4,157.34,6.35566289]
[1750109337840,11.01466151,157.4,157.36,4.89266151]
[1750109338961,11.01466151,157.4,157.36,11.24732096]
[1750109339335,11.01466151,157.4,157.35,4.89266151]
[1750109339336,4.89266151,157.39,157.35,4.89266151]
[1750109340659,4.89266151,157.39,157.36,6.3548551]
[1750109343451,4.89266151,157.39,157.34,6.35566289]
[1750109343657,4.89266151,157.39,157.35,4.89266151]
[1750109344455,17.36791291,157.4,157.35,4.89266151]
[1750109344666,17.36791291,157.4,157.36,6.3548551]
[1750109345260,11.01466151,157.4,157.36,6.3548551]
[1750109347178,6.122,157.4,157.36,6.3548551]
[1750109347358,11.01466151,157.4,157.36,6.3548551]
[1750109349365,6.122,157.4,157.36,6.3548551]
[1750109355575,11.01466151,157.4,157.36,6.3548551]
[1750109356469,6.122,157.4,157.36,6.3548551]
[1750109358676,6.122,157.4,157.35,6.35525897]
[1750109362564,6.122,157.4,157.35,11.24792048]
[1750109366276,6.122,157.4,157.36,4.89266151]
[1750109367085,6.122,157.4,157.37,6.35445129]
[1750109372693,11.01466151,157.4,157.37,6.35445129]
[1750109373576,32.47426151,157.42,157.38,4.89266151]
[1750109373773,31.91050275,157.45,157.4,4.89266151]
[1750109373967,4.89266151,157.45,157.41,4.89266151]
[1750109374475,4.89266151,157.45,157.42,6.35243298]
[1750109374879,4.89266151,157.45,157.41,11.24540246]
[1750109375667,65.57596388,157.47,157.41,11.24540246]
[1750109375867,4.89266151,157.45,157.41,11.24540246]
[1750109376887,4.89266151,157.45,157.41,6.35274095]
[1750109377067,4.89266151,157.44,157.4,11.24572978]
[1750109378167,4.89266151,157.45,157.4,11.24572978]
[1750109384374,4.89266151,157.45,157.4,36.54572978]
[1750109388373,4.89266151,157.45,157.4,31.65306827]
[1750109388586,4.89266151,157.45,157.4,36.54572978]
[1750109389499,4.89266151,157.45,157.41,4.89266151]
[1750109393705,11.24398018,157.45,157.41,4.89266151]
[1750109397311,11.24398018,157.45,157.4,36.54572978]
[1750109397684,6.35081925,157.46,157.4,36.54572978]
[1750109397879,4.89266151,157.45,157.4,36.54572978]
[1750109400418,11.24391191,157.45,157.4,36.54572978]
[1750109401413,6.35081925,157.46,157.4,36.54572978]
[1750109401625,11.24348076,157.46,157.41,4.89266151]
[1750109402787,4.89266151,157.44,157.4,36.54572978]
[1750109403990,4.89266151,157.44,157.4,31.65306827]
[1750109405696,4.89266151,157.43,157.4,25.3]
[1750109406708,11.2444795,157.44,157.4,25.3]
[1750109408030,11.2444795,157.44,157.39,36.54617854]
[1750109410798,4.89266151,157.44,157.39,36.54617854]
[1750109411722,11.24441796,157.44,157.39,36.54617854]
[1750109413335,6.35081925,157.46,157.39,36.54617854]
[1750109413536,4.89266151,157.44,157.39,36.54617854]
[1750109415030,11.24434443,157.44,157.39,36.54617854]
[1750109418119,4.89266151,157.43,157.39,25.3]
[1750109419599,11.24494817,157.43,157.39,25.3]
[1750109419803,4.89266151,157.42,157.38,25.3]
[1750109420006,4.89266151,157.41,157.37,4.89266151]
[1750109420412,6.35228666,157.43,157.37,4.89266151]
[1750109420640,4.89266151,157.41,157.37,4.89266151]
[1750109421229,4.89266151,157.41,157.37,11.24699789]
[1750109422539,4.89266151,157.41,157.37,6.35433638]
[1750109425638,4.89266151,157.41,157.37,31.65433638]
[1750109431244,11.24560304,157.41,157.37,25.3]
[1750109431446,4.89266151,157.39,157.37,25.3]
[1750109431624,4.89266151,157.39,157.35,31.65503292]
[1750109431825,4.89266151,157.37,157.35,25.3]
[1750109432034,11.2475401,157.36,157.31,31.65672962]
[1750109432345,4.89266151,157.35,157.31,31.65672962]
[1750109432926,4.89266151,157.34,157.31,25.3]
[1750109434331,4.89266151,157.34,157.31,31.65686268]
[1750109435732,4.89266151,157.34,157.31,25.3]
[1750109440232,4.89266151,157.33,157.31,25.3]
[1750109442256,4.89266151,157.33,157.28,11.25071308]
[1750109446142,4.89266151,157.33,157.28,6.35805157]
[1750109446448,4.89266151,157.33,157.28,36.55071308]
[1750109448543,4.89266151,157.33,157.29,11.25029482]
[1750109451359,12.69989649,157.35,157.29,6.35763331]
[1750109451654,4.89266151,157.34,157.29,11.25029482]
[1750109452247,4.89266151,157.34,157.29,31.65763331]
[1750109452552,4.89266151,157.31,157.27,31.65825553]
[1750109452730,4.89266151,157.31,157.27,36.55091704]
[1750109459058,4.89266151,157.31,157.27,31.65825553]
[1750109460859,6.35566289,157.34,157.27,31.65825553]
[1750109461035,4.89266151,157.31,157.27,31.65825553]
[1750109463454,4.89266151,157.3,157.27,25.3]
[1750109464241,4.89266151,157.3,157.26,31.65885198]
[1750109468857,11.24998298,157.3,157.26,31.65885198]
[1750109469343,4.89266151,157.3,157.26,31.65885198]
[1750109469868,11.24996403,157.3,157.26,31.65885198]
[1750109470171,4.89266151,157.29,157.25,31.65920068]
[1750109470757,4.89266151,157.28,157.25,25.3]
[1750109472541,11.25051368,157.29,157.25,25.3]
[1750109473069,11.25051368,157.29,157.24,31.65962584]
[1750109473661,4.89266151,157.28,157.24,31.65962584]
[1750109475557,11.25038765,157.29,157.24,36.55228735]
[1750109475846,11.25038765,157.29,157.24,31.65962584]
[1750109476075,11.25038765,157.29,157.24,36.55228735]
[1750109479580,4.89266151,157.27,157.24,25.3]
[1750109479755,4.89266151,157.27,157.23,36.55251876]
[1750109479959,4.89266151,157.28,157.23,36.55251876]
[1750109480575,11.25085327,157.28,157.23,36.55251876]
[1750109483568,4.89266151,157.27,157.23,31.65985725]
[1750109484183,4.89266151,157.26,157.21,11.25322443]
[1750109484788,4.89266151,157.26,157.18,43.46698197]
[1750109484789,4.89266151,157.23,157.18,25.3]
[1750109484968,4.89266151,157.23,157.18,30.19266151]
[1750109485310,4.89266151,157.23,157.18,25.3]
[1750109485455,4.89266151,157.22,157.18,25.3]
[1750109485652,4.89266151,157.23,157.18,31.66210385]
[1750109485882,4.89266151,157.23,157.18,25.3]
[1750109486471,4.89266151,157.22,157.18,25.3]
[1750109486900,26.0,157.21,157.15,25.3]
[1750109487092,32.4352,157.21,157.15,25.3]
[1750109487405,26.0,157.14,157.06,6.3669935]
[1750109487690,4.89266151,157.09,157.04,11.26037478]
[1750109487875,6.36456211,157.12,157.04,11.26037478]
[1750109488067,4.89266151,157.08,157.04,11.26037478]
[1750109488582,4.89266151,157.08,157.04,6.36771327]
[1750109488978,7.66624298,157.08,157.04,6.36771327]
[1750109489168,6.36461177,157.12,157.04,6.36771327]
[1750109489372,7.66624298,157.09,157.04,14.03395625]
[1750109490373,7.66624298,157.08,157.04,6.36771327]
[1750109491088,7.66624298,157.08,157.04,14.03395625]
[1750109491272,7.66624298,157.12,157.04,14.03395625]
[1750109491273,7.66624298,157.09,157.04,14.03395625]
[1750109494059,7.66624298,157.09,157.05,18.86717544]
[1750109496362,9.62266068,157.11,157.05,18.86717544]
[1750109496589,7.66624298,157.09,157.05,18.86717544]
[1750109496799,7.66624298,157.09,157.05,44.16717544]
[1750109500187,15.98792027,157.11,157.05,44.16717544]
[1750109500371,7.66624298,157.09,157.05,44.16717544]
[1750109501790,7.66624298,157.1,157.05,44.16717544]
[1750109502887,7.66624298,157.09,157.05,18.86717544]
[1750109503081,7.66624298,157.1,157.05,18.86717544]
[1750109503669,23.65416325,157.11,157.05,18.86717544]
[1750109506067,7.66624298,157.1,157.05,18.86717544]
[1750109508893,20.8941028,157.11,157.05,18.86717544]
[1750109512867,11.27144212,157.11,157.05,18.86717544]
[1750109513770,11.88525959,157.11,157.05,18.86717544]
[1750109514001,16.79144212,157.11,157.05,18.86717544]
[1750109514594,10.42618253,157.11,157.05,18.86717544]
[1750109514981,16.79121769,157.11,157.05,18.86717544]
[1750109516587,4.90618253,157.1,157.05,18.86717544]
[1750109517099,4.90618253,157.1,157.05,12.5]
[1750109517100,26.0,157.08,157.05,12.5]
[1750109517302,4.90618253,157.06,157.05,12.5]
[1750109518780,14.03815031,157.06,157.05,12.5]
[1750109520515,6.3669935,157.06,157.05,12.5]
[1750109520680,14.03815031,157.06,157.05,12.5]
[1750109522903,6.3669935,157.06,157.05,12.5]
[1750109523102,14.03815031,157.06,157.05,12.5]
[1750109523408,6.3669935,157.06,157.05,12.5]
[1750109523588,14.03815031,157.06,157.05,12.5]
[1750109528287,32.82996074,157.06,157.05,12.5]
[1750109531022,25.15880393,157.06,157.05,12.5]
[1750109531213,32.82996074,157.06,157.05,12.5]
[1750109533912,6.50915507,157.06,157.05,12.5]
[1750109534227,14.18031188,157.06,157.05,12.5]
[1750109534713,14.18031188,157.06,156.76,1.54644147]
[1750109534714,26.0,156.93,156.76,1.54644147]
[1750109534917,26.0,156.93,156.8,7.67115681]
[1750109534918,26.0,156.89,156.8,7.67115681]
[1750109535087,26.0,156.88,156.77,23.99802862]
[1750109535293,7.67115681,156.88,156.77,23.99802862]
[1750109535503,26.0,156.89,156.83,7.67115681]
[1750109535702,7.67115681,156.9,156.8,7.67115681]
[1750109535895,7.67115681,156.9,156.82,6.37673766]
[1750109536115,7.67115681,156.9,156.85,7.67115681]
[1750109536415,30.7099621,156.91,156.85,7.67115681]
[1750109536416,33.67115681,156.91,156.85,7.67115681]
[1750109536593,33.67115681,156.91,156.82,22.31858181]
[1750109536594,42.65633887,156.92,156.87,7.67115681]
[1750109536794,16.35633887,156.92,156.87,7.67115681]
[1750109536993,16.35633887,156.92,156.88,7.67115681]
[1750109537189,24.02749568,156.92,156.83,26.0]
[1750109537402,7.67115681,156.91,156.83,26.0]
[1750109537613,7.67115681,156.91,156.85,7.67115681]
[1750109537816,7.67115681,156.91,156.84,22.31573577]
[1750109538027,7.67115681,156.91,156.86,7.67115681]
[1750109538405,24.02749568,156.92,156.86,7.67115681]
[1750109539299,16.35633887,156.92,156.88,7.67115681]
[1750109539804,16.35633887,156.92,156.89,7.67115681]
[1750109540002,16.35633887,156.92,156.88,29.98120269]
[1750109540212,16.35633887,156.92,156.91,7.67115681]
[1750109540716,41.58137547,157.05,156.91,7.67115681]
[1750109540717,13.21115681,157.04,156.92,0.42648471]
[1750109540917,13.21115681,157.04,156.99,7.67115681]
[1750109541123,39.21115681,157.04,156.99,7.67115681]
[1750109541718,7.67115681,157.03,156.98,7.67115681]
[1750109542022,7.67115681,157.03,156.98,14.04101355]
[1750109543905,7.67115681,157.03,156.99,7.67115681]
[1750109544306,39.21115681,157.04,157.0,7.67115681]
[1750109545306,39.21115681,157.04,156.99,7.67115681]
[1750109546414,7.67115681,157.03,157.0,6.36942675]
[1750109547428,31.54,157.04,157.0,6.36942675]
[1750109547647,39.21115681,157.04,157.0,6.36942675]
[1750109547843,31.54,157.04,157.0,6.36942675]
[1750109548009,7.67115681,157.03,157.0,6.36942675]
[1750109548203,7.67115681,157.03,156.98,7.67115681]
[1750109549427,7.67115681,157.03,156.97,29.96824707]
[1750109549830,65.43115681,157.04,156.98,7.67115681]
[1750109550230,26.0,157.04,156.99,7.67115681]
[1750109550439,26.0,157.04,157.0,7.67115681]
[1750109550932,33.67115681,157.04,156.99,7.67115681]
[1750109551541,33.67115681,157.04,157.0,6.36942675]
[1750109551729,7.67115681,157.03,157.0,6.36942675]
[1750109552520,7.67115681,157.02,156.99,6.36970878]
[1750109553916,7.67115681,157.02,156.98,6.37023824]
[1750109555434,7.67115681,157.01,156.98,6.37023824]
[1750109555635,6.36828405,157.03,156.94,17.46316806]
[1750109555636,7.67115681,156.99,156.94,17.46316806]
[1750109555833,6.36828405,157.03,156.94,25.13432487]
[1750109555834,7.67115681,156.98,156.94,25.13432487]
[1750109556024,7.67115681,156.99,156.95,6.37145587]
[1750109557646,7.67115681,156.98,156.95,6.37145587]
[1750109559438,7.67115681,156.98,156.94,6.37186185]
[1750109559820,7.67115681,156.98,156.94,14.04301866]
[1750109560643,32.54908891,157.01,156.94,6.37186185]
[1750109560847,7.67115681,156.99,156.94,6.37186185]
[1750109561050,7.67115681,156.99,156.94,14.04301866]
[1750109561224,7.67115681,156.98,156.94,14.04301866]
[1750109561752,7.67115681,156.98,156.93,7.67115681]
[1750109562342,7.67115681,156.98,156.94,7.67115681]
[1750109562528,7.67115681,156.99,156.92,22.3043589]
[1750109562733,7.67115681,156.98,156.93,7.67115681]
[1750109563242,7.67115681,156.98,156.94,6.37186185]
[1750109564151,7.67115681,156.99,156.94,6.37186185]
[1750109569640,7.67115681,156.97,156.94,6.37186185]
[1750109569844,7.67115681,156.96,156.94,6.37186185]
[1750109570653,7.67115681,156.95,156.92,15.93168493]
[1750109570861,7.67115681,156.95,156.91,6.3730801]
[1750109571041,6.37025995,156.98,156.91,6.3730801]
[1750109571042,7.67115681,156.96,156.91,6.3730801]
[1750109571241,6.37025995,156.98,156.91,6.3730801]
[1750109571461,7.67115681,156.96,156.91,6.3730801]
[1750109572584,7.67115681,156.96,156.91,14.04423691]
[1750109572749,7.67115681,156.97,156.91,14.04423691]
[1750109574145,7.67115681,156.97,156.91,6.3730801]
[1750109574345,7.67115681,156.97,156.91,14.04423691]
[1750109575660,7.67115681,156.96,156.91,6.3730801]
[1750109577546,7.67115681,156.96,156.91,14.04423691]
[1750109578757,7.67115681,156.96,156.91,6.3730801]
[1750109582846,7.67115681,156.94,156.9,6.37341584]
[1750109583065,6.51280564,156.97,156.9,6.37341584]
[1750109583066,7.67115681,156.93,156.9,6.37341584]
[1750109583958,7.67115681,156.93,156.89,6.37389253]
[1750109584452,7.67115681,156.93,156.89,14.04504934]
[1750109584947,7.67115681,156.93,156.89,6.37389253]
[1750109586057,7.67115681,156.92,156.89,6.37389253]
[1750109587462,7.67115681,156.92,156.88,6.37429882]
[1750109588158,7.67115681,156.93,156.88,6.37429882]
[1750109588358,7.67115681,156.93,156.88,7.67115681]
[1750109588951,31.68,156.96,156.88,7.67115681]
[1750109589153,7.67115681,156.93,156.88,7.67115681]
[1750109589370,31.68,156.96,156.88,7.67115681]
[1750109589549,7.67115681,156.94,156.88,7.67115681]
[1750109589857,7.67115681,156.93,156.88,7.67115681]
[1750109590060,7.67115681,156.92,156.89,6.37389253]
[1750109590566,7.67115681,156.93,156.89,6.37389253]
[1750109590737,5.62,156.96,156.89,6.37389253]
[1750109590936,7.67115681,156.93,156.89,6.37389253]
[1750109591155,7.67115681,156.93,156.88,6.37429882]
[1750109592771,7.67115681,156.94,156.88,6.37429882]
[1750109595099,7.67115681,156.94,156.87,22.31047999]
[1750109595266,7.67115681,156.93,156.87,22.31047999]
[1750109595464,7.67115681,156.92,156.87,22.31047999]
[1750109596079,7.67115681,156.93,156.87,29.9816368]
[1750109596373,7.67115681,156.92,156.87,29.9816368]
[1750109596578,7.67115681,156.9,156.87,6.37470516]
[1750109598261,7.67115681,156.9,156.85,22.31421634]
[1750109599760,7.67115681,156.89,156.85,6.37551801]
[1750109605084,6.3732008,156.91,156.85,6.37551801]
[1750109605289,7.67115681,156.88,156.83,14.04748786]
[1750109605456,11.08872456,156.91,156.84,7.67115681]
[1750109605661,7.67115681,156.89,156.84,7.67115681]
[1750109606472,7.67115681,156.9,156.86,6.37511156]
[1750109606664,7.67115681,156.91,156.86,14.04626837]
[1750109608287,7.67115681,156.91,156.85,7.67115681]
[1750109609496,32.37272347,156.92,156.85,7.67115681]
[1750109609497,7.67115681,156.9,156.86,6.37511156]
[1750109610498,32.37272347,156.92,156.86,6.37511156]
[1750109610792,7.67115681,156.9,156.86,6.37511156]
[1750109612763,7.67115681,156.9,156.84,15.9395787]
[1750109613079,4.91788874,156.9,156.85,4.91788874]
[1750109614194,4.91788874,156.9,156.86,6.37511156]
[1750109615190,4.91788874,156.9,156.86,31.67511156]
[1750109616887,32.37284122,156.92,156.86,31.67511156]
[1750109617092,4.91788874,156.9,156.86,31.67511156]
[1750109618697,4.91788874,156.89,156.86,25.3]
[1750109618879,4.91788874,156.87,156.86,25.3]
[1750109619087,4.91788874,156.87,156.83,31.67620368]
[1750109619401,4.91788874,156.86,156.83,31.67620368]
[1750109619698,4.91788874,156.86,156.83,6.37620368]
[1750109620072,4.91788874,156.85,156.78,15.94492595]
[1750109620275,8.1869,156.86,156.79,4.91788874]
[1750109620276,4.91788874,156.84,156.79,4.91788874]
[1750109620780,7.68967708,156.84,156.79,7.68967708]
[1750109622098,7.68967708,156.84,156.8,6.37755102]
[1750109622610,14.06561448,156.84,156.79,14.06754766]
[1750109622801,14.06561448,156.84,156.79,6.37787058]
[1750109623500,7.68967708,156.83,156.78,6.37821682]
[1750109624797,7.68967708,156.83,156.78,14.0678939]
[1750109625204,7.68967708,156.82,156.78,25.3]
[1750109625389,7.68967708,156.82,156.77,26.0]
[1750109625585,27.03313395,156.85,156.74,7.68967708]
[1750109625586,7.68967708,156.79,156.74,7.68967708]
[1750109627612,14.06771953,156.79,156.74,14.06965733]
[1750109628287,14.06771953,156.79,156.74,6.37998025]
[1750109628486,7.68967708,156.78,156.74,6.37998025]
[1750109628909,7.68967708,156.79,156.74,14.06965733]
[1750109629414,26.0,156.8,156.74,14.06965733]
[1750109629615,33.68967708,156.8,156.75,7.68967708]
[1750109629824,7.68967708,156.81,156.75,7.68967708]
[1750109630693,7.68967708,156.81,156.76,6.37917836]
[1750109631311,7.68967708,156.82,156.77,7.68967708]
[1750109631618,33.68967708,156.83,156.78,7.68967708]
[1750109632514,7.68967708,156.82,156.78,6.37836458]
[1750109633895,7.68967708,156.82,156.78,14.06804166]
[1750109635093,7.68967708,156.82,156.78,6.37836458]
[1750109642343,7.68967708,156.81,156.78,6.37836458]
[1750109648840,4.92307245,156.81,156.78,6.37836458]
[1750109650844,4.92307245,156.82,156.78,11.30143703]
[1750109651642,4.92307245,156.82,156.78,6.37836458]
[1750109653542,4.92307245,156.82,156.78,31.67836458]
[1750109655830,26.0,156.84,156.78,31.67836458]
[1750109656019,4.92307245,156.82,156.78,31.67836458]
[1750109658146,26.0,156.84,156.78,31.67836458]
[1750109658353,4.92307245,156.82,156.78,36.60143703]
[1750109658541,11.08467318,156.85,156.79,4.92307245]
[1750109658542,4.92307245,156.83,156.79,4.92307245]
[1750109659447,4.92307245,156.83,156.79,30.22307245]
[1750109659765,4.92307245,156.84,156.8,6.37755102]
[1750109664426,9.64409889,156.84,156.8,6.37755102]
[1750109665353,9.64409889,156.84,156.8,31.67755102]
[1750109665552,4.72102644,156.83,156.8,31.67755102]
[1750109665853,4.92307245,156.82,156.8,25.3]
[1750109666059,9.64409889,156.83,156.8,25.3]
[1750109666448,4.72102644,156.82,156.8,25.3]
[1750109666649,9.64409889,156.83,156.8,25.3]
[1750109666961,4.72102644,156.82,156.8,25.3]
[1750109670173,9.64409889,156.83,156.8,25.3]
[1750109670351,4.72102644,156.82,156.8,25.3]
[1750109671269,4.72102644,156.82,156.79,6.3777814]
[1750109673366,4.92307245,156.83,156.79,6.3777814]
[1750109673555,4.7301706,156.82,156.79,6.3777814]
[1750109673871,4.73011941,156.82,156.79,6.3777814]
[1750109674249,4.92307245,156.83,156.79,6.3777814]
[1750109674443,4.72988914,156.82,156.79,6.3777814]
[1750109674673,6.37597016,156.84,156.75,18.64964886]
[1750109674674,4.92307245,156.8,156.77,6.37863882]
[1750109674846,4.73051055,156.79,156.73,6.38039941]
[1750109675051,4.92307245,156.77,156.73,6.38039941]
[1750109675264,4.72871628,156.79,156.73,6.38039941]
[1750109675585,4.92307245,156.78,156.73,11.30347186]
[1750109675790,32.1083,156.8,156.73,11.30347186]
[1750109675791,4.7264418,156.79,156.73,11.30347186]
[1750109675952,9.64951425,156.78,156.73,11.30347186]
[1750109676151,4.92307245,156.78,156.73,6.38039941]
[1750109676387,4.7264418,156.79,156.73,6.38039941]
[1750109676388,4.92307245,156.77,156.73,6.38039941]
[1750109677057,11.10449097,156.79,156.73,6.38039941]
[1750109677058,4.92307245,156.78,156.73,11.30347186]
[1750109677371,4.92307245,156.75,156.71,7.67083339]
[1750109677695,4.92307245,156.76,156.71,12.59390584]
[1750109677873,4.92307245,156.76,156.71,7.67083339]
[1750109678064,4.92307245,156.76,156.71,12.59390584]
[1750109678774,4.92307245,156.73,156.71,1.289941]
[1750109679274,4.7264418,156.77,156.71,1.289941]
[1750109679441,11.24696795,156.78,156.71,1.289941]
[1750109679646,4.92307245,156.74,156.71,7.67100888]
[1750109679857,6.37902865,156.77,156.71,7.67100888]
[1750109680078,11.24700587,156.78,156.71,7.67100888]
[1750109680544,11.24700587,156.78,156.71,12.59408133]
[1750109681143,4.92307245,156.76,156.71,12.59408133]
[1750109681559,4.7264418,156.78,156.72,4.92307245]
[1750109681764,4.92307245,156.78,156.71,7.67100888]
[1750109682070,6.2841418,156.81,156.75,4.92307245]
[1750109682280,4.92307245,156.81,156.76,4.92307245]
[1750109683071,7.6928689,156.81,156.77,6.37877144]
[1750109684174,7.6928689,156.81,156.76,7.6928689]
[1750109685160,7.6928689,156.81,156.77,6.37877144]
[1750109685359,7.6928689,156.81,156.77,14.07164034]
[1750109686263,10.6264418,156.82,156.77,14.07164034]
[1750109686458,7.6928689,156.81,156.77,14.07164034]
[1750109687063,7.6928689,156.81,156.77,6.37877144]
[1750109687983,7.6928689,156.81,156.77,14.07164034]
[1750109688357,5.9,156.82,156.78,7.6928689]
[1750109688659,7.6928689,156.82,156.77,14.07164034]
[1750109688860,7.6928689,156.82,156.78,7.6928689]
[1750109689261,7.6928689,156.82,156.79,6.37795777]
[1750109689865,7.6928689,156.83,156.79,6.37795777]
[1750109690066,12.40482985,156.84,156.79,6.37795777]
[1750109690382,7.6928689,156.84,156.8,7.6928689]
[1750109690555,33.6928689,156.85,156.81,7.6928689]
[1750109690961,7.6928689,156.85,156.81,7.6928689]